fUSD/lending_fUSD_20250510
["ID","MTS","AMOUNT","RATE_DAILY","PERIOD"]
[360528482,1746844253944,-400.0,0.00019984,2]
[360528483,1746844253953,-400.0,0.00019984,2]
[360528484,1746844253963,-400.0,0.00019984,2]
[360528485,1746844253972,-400.0,0.00019984,2]
[360528486,1746844253982,-540.79022469,0.00019984,2]
[360528487,1746844253991,-400.0,0.00019984,2]
[360528488,1746844254002,-400.0,0.00019984,2]
[360528489,1746844254011,-400.0,0.00019984,2]
[360528490,1746844254020,-400.0,0.00019984,2]
[360528491,1746844254030,-400.0,0.00019984,2]
[360528492,1746844254039,-2107.97,0.00019984,2]
[360528493,1746844254048,-384.7313464,0.00019984,2]
[360528494,1746844254057,-276.40971802,0.00019984,2]
[360528495,1746844254066,-400.0,0.00019984,2]
[360528496,1746844254075,-400.0,0.00019984,2]
[360528497,1746844254085,-529.16599518,0.00019984,2]
[360528498,1746844254093,-400.0,0.00019984,2]
[360528499,1746844254102,-400.0,0.00019984,2]
[360528500,1746844254112,-400.0,0.00019984,2]
[360528501,1746844254121,-400.0,0.00019984,2]
[360528502,1746844254130,-400.0,0.00019984,2]
[360528503,1746844254139,-469.49,0.00019984,2]
[360528504,1746844254148,-1620.92,0.00019984,2]
[360528505,1746844254157,-400.0,0.00019984,2]
[360528506,1746844254167,-191.02242658,0.00019984,2]
[360528507,1746844254176,-400.0,0.00019984,2]
[360528508,1746844254185,-400.0,0.00019984,2]
[360528509,1746844254195,-783.08,0.00019984,2]
[360528510,1746844254205,-879.33,0.00019984,2]
[360528511,1746844254214,-174.12005051,0.00019984,2]
[360528512,1746844254224,-460.39181568,0.00019984,2]
[360528513,1746844254234,-159.22812265,0.00019984,2]
[360528514,1746844254243,-151.7169042,0.00019984,2]
[360528515,1746844254252,-503.01,0.00019984,2]
[360528516,1746844254261,-318.47961042,0.00019984,2]
[360528517,1746844254270,-400.0,0.00019984,2]
[360528518,1746844254279,-400.0,0.00019984,2]
[360528519,1746844254288,-400.0,0.00019984,2]
[360528520,1746844254298,-522.03123122,0.00019984,2]
[360528521,1746844254308,-176.90373263,0.00019984,2]
[360528522,1746844254317,-400.0,0.00019984,2]
[360528523,1746844254327,-400.0,0.00019984,2]
[360528524,1746844254336,-400.0,0.00019984,2]
[360528525,1746844254345,-200.0,0.00019984,2]
[360528526,1746844254354,-400.0,0.00019984,2]
[360528527,1746844254364,-462.48793768,0.00019984,2]
[360528528,1746844254373,-368.78600065,0.00019984,2]
[360528529,1746844254382,-400.0,0.00019984,2]
[360528530,1746844254391,-274.02595815,0.00019984,2]
[360528531,1746844254401,-400.0,0.00019984,2]
[360528532,1746844254410,-520.07734985,0.00019984,2]
[360528533,1746844254419,-400.0,0.00019984,2]
[360528534,1746844254429,-195.23872907,0.00019984,2]
[360528535,1746844254438,-400.0,0.00019984,2]
[360528536,1746844254448,-400.0,0.00019984,2]
[360528537,1746844254457,-400.0,0.00019984,2]
[360528538,1746844254466,-400.0,0.00019984,2]
[360528539,1746844254475,-400.0,0.00019984,2]
[360528540,1746844254485,-560.91,0.00019984,2]
[360528541,1746844254494,-176.92125719,0.00019984,2]
[360528542,1746844254505,-28818.01,0.00019984,2]
[360528543,1746844254514,-1937.6448162,0.00019984,2]
[360528544,1746844254757,-16805.55993824,0.00019984,2]
[360528545,1746844254768,-10074.80524556,0.00019984,2]
[360528546,1746844254778,-440.02718404,0.00019984,2]
[360528547,1746844254787,-151.0,0.00019984,2]
[360528548,1746844254796,-3017.99,0.00019984,2]
[360528549,1746844254805,-151.0,0.00019984,2]
[360528550,1746844254814,-1203.53,0.00019984,2]
[360528551,1746844254823,-1203.53,0.00019984,2]
[360528552,1746844254832,-301.22295352,0.00019984,2]
[360528553,1746844254841,-776.92,0.00019984,2]
[360528554,1746844254851,-776.92,0.00019984,2]
[360528555,1746844254860,-155.79063669,0.00019984,2]
[360528556,1746844254870,-485.64117397,0.00019984,2]
[360528557,1746844254879,-414.21026372,0.00019984,2]
[360528558,1746844254888,-198.1274333,0.00019984,2]
[360528559,1746844254897,-400.0,0.00019984,2]
[360528560,1746844254906,-767.07,0.00019984,2]
[360528561,1746844254915,-767.07,0.00019984,2]
[360528562,1746844254925,-400.0,0.00019984,2]
[360528563,1746844254933,-500.0,0.00019984,2]
[360528564,1746844254943,-400.0,0.00019984,2]
[360528565,1746844254954,-334.40946165,0.00019984,2]
[360528566,1746844254963,-168.33565755,0.00019984,2]
[360528567,1746844255279,-400.0,0.00019964,2]
[360528568,1746844255289,-400.0,0.00019982,2]
[360528569,1746844255298,-231.66434245,0.00019984,2]
[360528570,1746844255307,-632.8,0.00019984,2]
[360528571,1746844255316,-400.0,0.00019984,2]
[360528572,1746844255326,-439.79222358,0.00019984,2]
[360528573,1746844255337,-400.0,0.00019984,2]
[360528574,1746844255347,-241.95939374,0.00019984,2]
[360528575,1746844255357,-400.0,0.00019984,2]
[360528576,1746844255367,-400.0,0.00019984,2]
[360528577,1746844255376,-325.24653414,0.00019984,2]
[360528578,1746844255386,-400.0,0.00019984,2]
[360528579,1746844255395,-400.0,0.00019984,2]
[360528580,1746844255406,-400.0,0.00019984,2]
[360528581,1746844255416,-400.0,0.00019984,2]
[360528582,1746844255426,-400.0,0.00019984,2]
[360528583,1746844255436,-235.0696426,0.00019984,2]
[360528584,1746844255447,-151.0,0.00019984,2]
[360528585,1746844255457,-263.986626,0.00019984,2]
[360528586,1746844255468,-400.0,0.00019984,2]
[360528587,1746844255478,-400.0,0.00019984,2]
[360528588,1746844255488,-642.37,0.00019984,2]
[360528589,1746844255497,-400.0,0.00019984,2]
[360528590,1746844255507,-400.0,0.00019984,2]
[360528591,1746844255517,-400.0,0.00019984,2]
[360528592,1746844255526,-594.19,0.00019984,2]
[360528593,1746844255536,-400.0,0.00019984,2]
[360528594,1746844255546,-400.0,0.00019984,2]
[360528595,1746844255555,-521.88,0.00019984,2]
[360528596,1746844255565,-1396.27,0.00019984,2]
[360528597,1746844255575,-400.0,0.00019984,2]
[360528598,1746844255585,-57.33053183,0.00019984,2]
[360528599,1746844381664,267.24,0.00018979,2]
[360528600,1746844650062,37611.15,0.00018982,2]
[360528601,1746844768212,-550.0,0.00023,14]
[360528602,1746844768685,150.0,0.00018986,7]
[360528603,1746844903462,250.0,0.00017,2]
[360528604,1746844904541,200.87080792,0.00019,2]
[360528605,1746844904565,99.12919208,0.00019,2]
[360528608,1746845000106,2099.82,0.0003,30]
[360528609,1746845039522,1000.0,0.00018938,2]
[360528610,1746845107926,266.28,0.000195,2]
[360528619,1746845300577,279.64,0.00017,2]
[360528620,1746845300762,279.64,0.00019264,2]
[360528630,1746845431596,-200.8708,0.00019864,2]
[360528631,1746845431605,-972.52919999,0.00019871,2]
[360528632,1746845431616,-527.41234189,0.00019871,2]
[360528633,1746845431625,-28.75765811,0.00019872,2]
[360528634,1746845431754,-178.64234189,0.00019872,2]
[360528635,1746845431765,-1499.94154185,0.00019874,2]
[360528636,1746845431775,-1499.94154185,0.00019877,2]
[360528637,1746845431786,-1499.94154185,0.00019881,2]
[360528638,1746845431797,-1200.0,0.00019882,2]
[360528639,1746845431806,-300.0,0.00019883,2]
[360528640,1746845431815,-1499.94154185,0.00019884,2]
[360528641,1746845431825,-3501.18,0.00019884,2]
[360528642,1746845431834,-3977.95,0.00019884,2]
[360528643,1746845431843,-1055.8252636,0.00019884,2]
[360528644,1746845431852,-200.0,0.00019885,2]
[360528645,1746845431861,-176.89762222,0.00019885,2]
[360528646,1746845431870,-1499.94154185,0.00019887,2]
[360528647,1746845431879,-1499.94154185,0.0001989,2]
[360528648,1746845431888,-1499.94154185,0.00019894,2]
[360528649,1746845431898,-172.1431281,0.00019895,2]
[360528650,1746845431908,-804.10198487,0.00019896,2]
[360528651,1746845431917,-1499.94154185,0.00019897,2]
[360528652,1746845431927,-804.10198487,0.00019898,2]
[360528653,1746845431936,-804.10198487,0.000199,2]
[360528654,1746845431946,-1499.94154185,0.000199,2]
[360528655,1746845431955,-5800.0,0.000199,2]
[360528657,1746845431968,-1708.18819995,0.000199,2]
[360528659,1746845431977,-180.01833177,0.000199,2]
[360528661,1746845431986,-4099.767,0.00019935,2]
[360528663,1746845431995,-879.0,0.00019935,2]
[360528665,1746845432004,-1218.343,0.00019952,2]
[360528667,1746845432014,-180.24351849,0.00019959,2]
[360528669,1746845432025,-3451.41209424,0.00019962,2]
[360528671,1746845432035,-400.0,0.00019963,2]
[360528673,1746845432044,-536.77593441,0.00019963,2]
[360528675,1746845432055,-473.85235169,0.00019963,2]
[360528677,1746845432064,-170.40746516,0.00019963,2]
[360528709,1746845432280,-400.0,0.00019963,2]
[360528710,1746845432290,-400.0,0.00019963,2]
[360528711,1746845432300,-400.0,0.00019963,2]
[360528712,1746845432309,-400.0,0.00019963,2]
[360528713,1746845432318,-400.0,0.00019963,2]
[360528714,1746845432327,-400.0,0.00019963,2]
[360528715,1746845432336,-450.0,0.00019963,2]
[360528716,1746845432345,-400.0,0.00019963,2]
[360528717,1746845432354,-400.0,0.00019963,2]
[360528718,1746845432363,-400.0,0.00019963,2]
[360528719,1746845432374,-400.0,0.00019963,2]
[360528720,1746845432384,-498.97049376,0.00019963,2]
[360528721,1746845432394,-400.0,0.00019963,2]
[360528722,1746845432405,-400.0,0.00019963,2]
[360528723,1746845432414,-400.0,0.00019963,2]
[360528724,1746845432425,-505.26795464,0.00019963,2]
[360528725,1746845432435,-400.0,0.00019963,2]
[360528726,1746845432446,-400.0,0.00019963,2]
[360528727,1746845432455,-400.0,0.00019963,2]
[360528728,1746845432464,-400.0,0.00019963,2]
[360528729,1746845432473,-400.0,0.00019963,2]
[360528730,1746845432483,-275.62974528,0.00019963,2]
[360528731,1746845432492,-400.0,0.00019963,2]
[360528732,1746845432503,-400.0,0.00019963,2]
[360528733,1746845432512,-400.0,0.00019963,2]
[360528734,1746845432524,-400.0,0.00019963,2]
[360528735,1746845432535,-400.0,0.00019963,2]
[360528736,1746845432546,-400.0,0.00019963,2]
[360528737,1746845432555,-400.0,0.00019963,2]
[360528738,1746845432564,-400.0,0.00019963,2]
[360528739,1746845432573,-400.0,0.00019963,2]
[360528740,1746845432583,-400.0,0.00019963,2]
[360528741,1746845432594,-400.0,0.00019963,2]
[360528742,1746845432606,-400.0,0.00019963,2]
[360528743,1746845432616,-519.00626502,0.00019963,2]
[360528744,1746845432626,-333.75316054,0.00019963,2]
[360528745,1746845432636,-400.0,0.00019963,2]
[360528746,1746845432645,-400.0,0.00019963,2]
[360528747,1746845432654,-513.54,0.00019963,2]
[360528748,1746845432663,-400.0,0.00019963,2]
[360528749,1746845432672,-400.0,0.00019963,2]
[360528750,1746845432681,-506.09687833,0.00019963,2]
[360528751,1746845432692,-155.9309323,0.00019963,2]
[360528752,1746845432701,-400.0,0.00019963,2]
[360528753,1746845432710,-400.0,0.00019963,2]
[360528754,1746845432719,-400.0,0.00019963,2]
[360528755,1746845432728,-400.0,0.00019963,2]
[360528756,1746845432738,-187.12503736,0.00019963,2]
[360528757,1746845432747,-400.0,0.00019963,2]
[360528758,1746845432756,-400.0,0.00019963,2]
[360528759,1746845432765,-400.0,0.00019963,2]
[360528760,1746845432774,-531.35070954,0.00019963,2]
[360528761,1746845432783,-400.0,0.00019963,2]
[360528762,1746845432792,-400.0,0.00019963,2]
[360528763,1746845432802,-506.13200696,0.00019963,2]
[360528764,1746845432811,-150.0,0.00019963,2]
[360528765,1746845432820,-509.80405343,0.00019963,2]
[360528766,1746845432829,-400.0,0.00019963,2]
[360528767,1746845432839,-502.81511459,0.00019963,2]
[360528768,1746845432847,-400.0,0.00019963,2]
[360528769,1746845432857,-400.0,0.00019963,2]
[360528770,1746845432866,-456.20474968,0.00019963,2]
[360528771,1746845432876,-1844.47,0.00019963,2]
[360528772,1746845432885,-400.0,0.00019963,2]
[360528773,1746845432894,-400.0,0.00019963,2]
[360528774,1746845432903,-527.66231867,0.00019963,2]
[360528775,1746845432912,-510.46582543,0.00019963,2]
[360528776,1746845432922,-400.0,0.00019963,2]
[360528777,1746845432931,-400.0,0.00019963,2]
[360528778,1746845432940,-520.91473357,0.00019963,2]
[360528779,1746845432950,-522.5131921,0.00019963,2]
[360528780,1746845432959,-400.0,0.00019963,2]
[360528781,1746845432968,-400.0,0.00019963,2]
[360528782,1746845432977,-209.1021564,0.00019964,2]
[360528783,1746845432986,-400.0,0.00019964,2]
[360528784,1746845432995,-239.16798374,0.00019964,2]
[360528785,1746845433004,-473.93238894,0.00019964,2]
[360528786,1746845433016,-400.0,0.00019964,2]
[360528787,1746845433026,-400.0,0.00019964,2]
[360528788,1746845433036,-400.0,0.00019964,2]
[360528789,1746845433046,-400.0,0.00019964,2]
[360528790,1746845433056,-400.0,0.00019964,2]
[360528791,1746845433066,-400.0,0.00019964,2]
[360528792,1746845433076,-400.0,0.00019964,2]
[360528793,1746845433085,-400.0,0.00019964,2]
[360528794,1746845433096,-182.75589288,0.00019964,2]
[360528795,1746845433106,-400.0,0.00019964,2]
[360528796,1746845433115,-400.0,0.00019964,2]
[360528797,1746845433124,-156.55170561,0.00019964,2]
[360528798,1746845433133,-400.0,0.00019964,2]
[360528799,1746845433143,-400.0,0.00019964,2]
[360528800,1746845433153,-400.0,0.00019964,2]
[360528801,1746845433163,-400.0,0.00019964,2]
[360528802,1746845433173,-400.0,0.00019964,2]
[360528803,1746845433182,-225.16369942,0.00019964,2]
[360528804,1746845433194,-400.0,0.00019964,2]
[360528805,1746845433205,-400.0,0.00019964,2]
[360528806,1746845433216,-400.0,0.00019964,2]
[360528807,1746845433226,-400.0,0.00019964,2]
[360528808,1746845433236,-400.0,0.00019964,2]
[360528809,1746845433246,-400.0,0.00019964,2]
[360528810,1746845433255,-400.0,0.00019964,2]
[360528811,1746845433266,-400.0,0.00019964,2]
[360528812,1746845433275,-1538.54827827,0.00019964,2]
[360528813,1746845433294,-305.92172173,0.00019964,2]
[360528814,1746845433304,-400.0,0.00019964,2]
[360528815,1746845433314,-400.0,0.00019964,2]
[360528816,1746845433324,-400.0,0.00019964,2]
[360528817,1746845433333,-282.36331689,0.00019964,2]
[360528818,1746845433342,-400.0,0.00019964,2]
[360528819,1746845433351,-400.0,0.00019965,2]
[360528820,1746845433362,-400.0,0.00019965,2]
[360528821,1746845433372,-399.22006658,0.00019965,2]
[360528822,1746845433382,-400.0,0.00019965,2]
[360528823,1746845433392,-400.0,0.00019965,2]
[360528824,1746845433401,-219.31770349,0.00019965,2]
[360528825,1746845433411,-400.0,0.00019965,2]
[360528826,1746845433421,-185.23037335,0.00019965,2]
[360528827,1746845433430,-67.48216063,0.00019965,2]
[360528828,1746845433462,-277.8417361,0.00019965,2]
[360528831,1746845437610,-176.89762222,0.000199,2]
[360528832,1746845437620,-54.67610327,0.00019965,2]
[360528833,1746845437630,-400.0,0.00019965,2]
[360528834,1746845437638,-400.0,0.00019965,2]
[360528835,1746845437647,-121.88591268,0.00019965,2]
[360528836,1746845437663,-278.11408732,0.00019965,2]
[360528837,1746845437672,-222.51984436,0.00019965,2]
[360528838,1746845437725,13000.0,0.0003,120]
[360528839,1746845437821,-177.48015564,0.00019965,2]
[360528840,1746845437831,-400.0,0.00019965,2]
[360528841,1746845437840,-283.5206902,0.00019965,2]
[360528876,1746845439801,-47.82517681,0.00019965,2]
[360528877,1746845439811,-513.54,0.00019965,2]
[360528878,1746845439821,-358.03300371,0.00019965,2]
[360528879,1746845439832,-41.96699629,0.00019965,2]
[360528880,1746845439842,-500.0,0.00019965,2]
[360528881,1746845439851,-400.0,0.00019965,2]
[360528882,1746845439861,-150.93875087,0.00019971,2]
[360528883,1746845439870,-968.9,0.00019971,2]
[360528884,1746845439880,-400.0,0.00019971,2]
[360528885,1746845439889,-538.81163439,0.00019971,2]
[360528886,1746845439898,-504.56682071,0.00019971,2]
[360528887,1746845439908,-524.52239778,0.00019971,2]
[360528888,1746845439918,-400.0,0.00019971,2]
[360528889,1746845439927,-491.46913275,0.00019971,2]
[360528890,1746845439936,-400.0,0.00019971,2]
[360528891,1746845439946,-400.0,0.00019971,2]
[360528892,1746845439955,-27.2738685,0.00019971,2]
[360528895,1746845440173,-349.91999938,0.00019971,2]
[360528896,1746845440182,-225.60181474,0.00019971,2]
[360528897,1746845440191,-189.22413088,0.00019971,2]
[360528898,1746845440203,-210.77586912,0.00019971,2]
[360528899,1746845440212,-400.0,0.00019971,2]
[360528900,1746845440222,-400.0,0.00019971,2]
[360528901,1746845440231,-243.73089643,0.00019971,2]
[360528902,1746845440240,-400.0,0.00019971,2]
[360528903,1746845440249,-400.0,0.00019971,2]
[360528904,1746845440258,-400.0,0.00019971,2]
[360528905,1746845440267,-400.0,0.00019971,2]
[360528906,1746845440277,-400.0,0.00019971,2]
[360528907,1746845440286,-68.21762977,0.00019971,2]
[360528908,1746845440297,-452.04700124,0.00019971,2]
[360528910,1746845440306,-325.25299884,0.00019971,2]
[360528912,1746845440317,-74.74700116,0.00019971,2]
[360528914,1746845440326,-400.0,0.00019971,2]
[360528916,1746845440335,-1418.3,0.00019971,2]
[360528918,1746845440344,-400.0,0.00019971,2]
[360528920,1746845440353,-520.23799882,0.00019971,2]
[360528922,1746845440364,-164.96200118,0.00019971,2]
[360528924,1746845440374,-400.0,0.00019971,2]
[360528926,1746845440383,-348.80178528,0.00019971,2]
[360528993,1746845442681,-440.14704784,0.00019935,2]
[360528995,1746845442963,-5494.85295216,0.00019935,2]
[360528996,1746845442973,-91.32821472,0.00019971,2]
[360528997,1746845442982,-400.0,0.00019971,2]
[360528998,1746845442992,-400.0,0.00019971,2]
[360528999,1746845443002,-400.0,0.00019971,2]
[360529000,1746845443011,-400.0,0.00019971,2]
[360529001,1746845443023,-400.0,0.00019971,2]
[360529002,1746845443033,-1002.94,0.00019971,2]
[360529003,1746845443042,-400.0,0.00019971,2]
[360529004,1746845443052,-400.0,0.00019971,2]
[360529005,1746845443062,-2640.74,0.00019971,2]
[360529006,1746845443072,-639.23,0.00019971,2]
[360529007,1746845443082,-400.0,0.00019971,2]
[360529008,1746845443091,-24761.98,0.00019971,2]
[360529009,1746845443108,-507.68489933,0.00019971,2]
[360529010,1746845443117,-400.0,0.00019971,2]
[360529011,1746845443126,-647.43,0.00019971,2]
[360529012,1746845443135,-400.0,0.00019971,2]
[360529013,1746845443144,-400.0,0.00019971,2]
[360529014,1746845443154,-400.0,0.00019971,2]
[360529015,1746845443162,-553.7,0.00019971,2]
[360529016,1746845443172,-400.0,0.00019971,2]
[360529018,1746845443181,-400.0,0.00019971,2]
[360529019,1746845443191,-562.07,0.00019971,2]
[360529020,1746845443202,-400.0,0.00019971,2]
[360529021,1746845443211,-1221.74,0.00019971,2]
[360529022,1746845443221,-400.0,0.00019971,2]
[360529023,1746845443231,-400.0,0.00019971,2]
[360529024,1746845443240,-400.0,0.00019971,2]
[360529025,1746845443250,-400.0,0.00019971,2]
[360529026,1746845443259,-596.54,0.00019971,2]
[360529027,1746845443268,-779.34,0.00019971,2]
[360529028,1746845443277,-500.0,0.00019971,2]
[360529029,1746845443286,-400.0,0.00019971,2]
[360529030,1746845443295,-400.0,0.00019971,2]
[360529031,1746845443303,-513.1,0.00019971,2]
[360529032,1746845443312,-750.85,0.00019971,2]
[360529033,1746845443322,-1270.29,0.00019971,2]
[360529034,1746845443331,-1558.96,0.00019971,2]
[360529035,1746845443340,-400.0,0.00019971,2]
[360529036,1746845443350,-400.0,0.00019971,2]
[360529037,1746845443359,-589.91,0.00019971,2]
[360529038,1746845443368,-400.0,0.00019971,2]
[360529039,1746845443377,-332.89235484,0.00019971,2]
[360529040,1746845443386,-311.20645255,0.00019971,2]
[360529041,1746845443396,-400.0,0.00019971,2]
[360529042,1746845443405,-322.946704,0.00019971,2]
[360529043,1746845443414,-400.0,0.00019971,2]
[360529044,1746845443423,-400.0,0.00019971,2]
[360529045,1746845443433,-400.0,0.00019971,2]
[360529046,1746845443442,-496.63,0.00019971,2]
[360529047,1746845443453,-989.53,0.00019971,2]
[360529048,1746845443462,-400.0,0.00019971,2]
[360529049,1746845443471,-1162.01,0.00019971,2]
[360529050,1746845443480,-400.0,0.00019971,2]
[360529051,1746845443490,-400.0,0.00019971,2]
[360529052,1746845443501,-500.13858881,0.00019971,2]
[360529053,1746845443510,-400.0,0.00019971,2]
[360529054,1746845443521,-320.10282267,0.00019971,2]
[360529055,1746845443530,-3028.65,0.00019971,2]
[360529056,1746845443539,-400.0,0.00019971,2]
[360529057,1746845443548,-1193.83,0.00019971,2]
[360529058,1746845443558,-490.8,0.00019971,2]
[360529059,1746845443567,-400.0,0.00019971,2]
[360529060,1746845443576,-153.29453,0.00019972,2]
[360529061,1746845443585,-151.0,0.00019972,2]
[360529062,1746845443595,-523.67053841,0.00019973,2]
[360529063,1746845443605,-500.0,0.00019973,2]
[360529064,1746845443615,-500.0,0.00019973,2]
[360529065,1746845443625,-504.83383511,0.00019973,2]
[360529066,1746845443634,-500.0,0.00019973,2]
[360529067,1746845443644,-500.0,0.00019973,2]
[360529068,1746845443653,-500.0,0.00019973,2]
[360529069,1746845443662,-500.0,0.00019973,2]
[360529070,1746845443671,-500.0,0.00019973,2]
[360529071,1746845443680,-280.73,0.00019973,2]
[360529072,1746845443689,-257.22433617,0.00019981,2]
[360529073,1746845443699,-400.0,0.00019981,2]
[360529074,1746845443708,-400.0,0.00019981,2]
[360529075,1746845443718,-495.16,0.00019981,2]
[360529076,1746845443727,-503.67818716,0.00019981,2]
[360529077,1746845443736,-400.0,0.00019981,2]
[360529078,1746845443745,-400.0,0.00019981,2]
[360529079,1746845443754,-400.0,0.00019981,2]
[360529080,1746845443763,-608.45,0.00019981,2]
[360529081,1746845443773,-1757.63,0.00019981,2]
[360529082,1746845443782,-400.0,0.00019981,2]
[360529083,1746845443791,-400.0,0.00019981,2]
[360529084,1746845443800,-400.0,0.00019981,2]
[360529085,1746845443810,-1676.31,0.00019981,2]
[360529086,1746845443819,-444.92,0.00019981,2]
[360529087,1746845443828,-400.0,0.00019981,2]
[360529088,1746845443838,-452.88039869,0.00019981,2]
[360529089,1746845443847,-400.0,0.00019981,2]
[360529090,1746845443857,-507.31804183,0.00019982,2]
[360529091,1746845443866,-400.0,0.00019982,2]
[360529092,1746845443875,-400.0,0.00019982,2]
[360529093,1746845443885,-186.63522223,0.00019982,2]
[360529094,1746845443894,-498.42271291,0.00019982,2]
[360529095,1746845443903,-400.0,0.00019982,2]
[360529096,1746845443912,-400.0,0.00019982,2]
[360529097,1746845443922,-400.0,0.00019982,2]
[360529098,1746845443931,-400.0,0.00019982,2]
[360529099,1746845443940,-400.0,0.00019982,2]
[360529100,1746845443951,-521.97196962,0.00019982,2]
[360529101,1746845443961,-400.0,0.00019982,2]
[360529102,1746845443970,-400.0,0.00019982,2]
[360529103,1746845443980,-400.0,0.00019982,2]
[360529104,1746845443989,-280.98956013,0.00019982,2]
[360529105,1746845443999,-400.0,0.00019982,2]
[360529106,1746845444009,-400.0,0.00019982,2]
[360529107,1746845444019,-400.0,0.00019982,2]
[360529108,1746845444030,-400.0,0.00019982,2]
[360529109,1746845444040,-400.0,0.00019982,2]
[360529110,1746845444049,-400.0,0.00019982,2]
[360529111,1746845444058,-400.0,0.00019982,2]
[360529112,1746845444068,-400.0,0.00019982,2]
[360529113,1746845444078,-400.0,0.00019982,2]
[360529114,1746845444087,-400.0,0.00019982,2]
[360529115,1746845444098,-400.0,0.00019982,2]
[360529116,1746845444107,-400.0,0.00019982,2]
[360529117,1746845444116,-400.0,0.00019982,2]
[360529118,1746845444125,-428.59637424,0.00019982,2]
[360529119,1746845444135,-400.0,0.00019982,2]
[360529120,1746845444146,-400.0,0.00019982,2]
[360529121,1746845444156,-400.0,0.00019982,2]
[360529122,1746845444351,-400.0,0.00019982,2]
[360529123,1746845444361,-400.0,0.00019982,2]
[360529124,1746845444370,-400.0,0.00019982,2]
[360529125,1746845444380,-400.0,0.00019982,2]
[360529126,1746845444389,-215.6932682,0.00019982,2]
[360529127,1746845444399,-400.0,0.00019982,2]
[360529128,1746845444408,-400.0,0.00019982,2]
[360529129,1746845444418,-400.0,0.00019982,2]
[360529130,1746845444427,-400.0,0.00019982,2]
[360529131,1746845444436,-400.0,0.00019982,2]
[360529132,1746845444447,-400.0,0.00019982,2]
[360529133,1746845444457,-363.6848449,0.00019982,2]
[360529134,1746845444466,-1844.47,0.00019982,2]
[360529135,1746845444475,-400.0,0.00019982,2]
[360529136,1746845444485,-263.35181385,0.00019982,2]
[360529137,1746845444495,-400.0,0.00019982,2]
[360529138,1746845444504,-400.0,0.00019982,2]
[360529139,1746845444514,-400.0,0.00019982,2]
[360529140,1746845444523,-360.23294057,0.00019982,2]
[360529141,1746845444533,-400.0,0.00019982,2]
[360529142,1746845444543,-400.0,0.00019982,2]
[360529143,1746845444552,-400.0,0.00019982,2]
[360529144,1746845444562,-400.0,0.00019982,2]
[360529145,1746845444572,-245.72918779,0.00019982,2]
[360529146,1746845444582,-400.0,0.00019982,2]
[360529147,1746845444592,-400.0,0.00019982,2]
[360529148,1746845444601,-400.0,0.00019982,2]
[360529149,1746845444610,-400.0,0.00019982,2]
[360529150,1746845444619,-536.36,0.00019982,2]
[360529151,1746845444630,-400.0,0.00019982,2]
[360529152,1746845444640,-400.0,0.00019982,2]
[360529153,1746845444650,-400.0,0.00019982,2]
[360529154,1746845444659,-253.79444372,0.00019982,2]
[360529155,1746845444668,-400.0,0.00019982,2]
[360529156,1746845444678,-250.0,0.00019982,2]
[360529157,1746845444687,-400.0,0.00019982,2]